lending/lending_fUSD_20260306
["ID","MTS","AMOUNT","RATE_DAILY","PERIOD"]
[407772815,1772787837099,-10000.01,9.5e-05,3]
[407772816,1772787837234,-5000.01,9.5e-05,3]
[407772817,1772787837294,-10000.01,9.5e-05,3]
[407772818,1772787837390,-10000.01,9.5e-05,3]
[407772819,1772787837433,-5000.01,9.5e-05,3]
[407772820,1772787837503,-10000.01,9.5e-05,3]
[407772821,1772787837623,-10000.01,9.5e-05,3]
[407772822,1772787837714,-10000.01,9.5e-05,3]
[407772823,1772787843079,-300.0,9.499e-05,2]
[407772824,1772787843122,-4400.01,9.5e-05,3]
[407772825,1772787843191,-5000.01,9.5e-05,3]
[407772826,1772787843300,-5000.01,9.5e-05,3]
[407772827,1772787843404,-5000.01,9.5e-05,3]
[407772828,1772787843537,-5000.01,9.5e-05,3]
[407772830,1772787940195,-506.0,7.944e-05,2]
[407772831,1772787940313,-215.81584655,7.944e-05,2]
[407772832,1772787940553,-478.18415345,7.944e-05,2]
[407772833,1772787942213,-5000.01,7.945e-05,2]
[407772834,1772787942450,-624.993288,7.945e-05,2]
[407772835,1772787942483,-3750.023424,7.945e-05,2]
[407772836,1772788028099,5000.01,7.945e-05,2]
[407772837,1772788028122,276.458048,7.945e-05,2]
[407772838,1772788036679,505.76633109,8e-05,2]
[407772839,1772788037731,500.0,8e-05,2]
[407772840,1772788038272,500.0,8e-05,2]
[407772841,1772788038780,500.0,8e-05,2]
[407772842,1772788039330,522.56017269,8e-05,2]
[407772843,1772788039536,500.0,8e-05,2]
[407772844,1772788039660,500.0,8e-05,2]
[407772845,1772788039734,500.0,8e-05,2]
[407772846,1772788048129,-500.0,8e-05,2]
[407772847,1772788048151,-500.0,8e-05,2]
[407772848,1772788048172,-301.40412267,8e-05,2]
[407772850,1772788151149,-1200.0,7.999e-05,2]
[407772851,1772788151176,-300.0,7.999e-05,2]
[407772852,1772788151202,-300.0,7.999e-05,2]
[407772853,1772788151228,-150.0,7.999e-05,2]
[407772854,1772788151254,-198.59587733,8e-05,2]
[407772855,1772788151279,-500.0,8e-05,2]
[407772856,1772788151305,-500.0,8e-05,2]
[407772857,1772788151329,-848.80715904,8e-05,2]
[407772858,1772788151351,-500.0,8e-05,2]
[407772859,1772788151373,-500.0,8e-05,2]
[407772860,1772788151396,-500.0,8e-05,2]
[407772861,1772788151421,-694.66785612,8e-05,2]
[407772862,1772788151444,-500.0,8e-05,2]
[407772863,1772788151467,-514.39,8e-05,2]
[407772864,1772788151490,-500.0,8e-05,2]
[407772865,1772788151513,-505.79542106,8e-05,2]
[407772866,1772788151536,-505.1580482,8e-05,2]
[407772867,1772788151559,-500.0,8e-05,2]
[407772868,1772788151587,-507.13807355,8e-05,2]
[407772869,1772788151612,-500.0,8e-05,2]
[407772870,1772788151636,-500.0,8e-05,2]
[407772871,1772788151660,-500.0,8e-05,2]
[407772872,1772788151684,-500.0,8e-05,2]
[407772873,1772788151707,-500.0,8e-05,2]
[407772874,1772788151730,-500.0,8e-05,2]
[407772875,1772788151753,-500.0,8e-05,2]
[407772876,1772788151775,-516.85680444,8e-05,2]
[407772877,1772788151802,-1680.0,8.739e-05,2]
[407772878,1772788151825,-657.95647625,8.739e-05,2]
[407772879,1772788151848,-250.0,8.739e-05,2]
[407772880,1772788151870,-193.96734881,8.74e-05,2]
[407772881,1772788151892,-250.0,8.799e-05,2]
[407772882,1772788151914,-5000.0,8.799e-05,2]
[407772883,1772788151937,-420.0,8.799e-05,2]
[407772884,1772788151962,-420.0,8.799e-05,2]
[407772885,1772788151985,-255.0,8.799e-05,2]
[407772886,1772788152012,-200.0,8.962e-05,2]
[407772887,1772788152038,-657.95647624,9.119e-05,2]
[407772888,1772788152064,-265.648545,9.263e-05,2]
[407772889,1772788152086,-344.0,9.31e-05,2]
[407772890,1772788152112,-439.0,9.328e-05,2]
[407772891,1772788152137,-300.0,9.399e-05,2]
[407772892,1772788152161,-300.0,9.399e-05,2]
[407772893,1772788152187,-3991.55051219,9.4e-05,2]
[407772894,1772788152215,-549.04209264,9.4e-05,2]
[407772895,1772788152242,-1350.05752192,9.4e-05,2]
[407772896,1772788152271,-1178.53568715,9.4e-05,2]
[407772897,1772788152299,-6.05426334,9.4e-05,2]
[407772898,1772788159108,-1303.37586327,9.4e-05,2]
[407772899,1772788159148,-274.0,9.452e-05,2]
[407772900,1772788159176,-501.11845623,9.473e-05,2]
[407772901,1772788159198,-500.0,9.473e-05,2]
[407772902,1772788159223,-500.0,9.473e-05,2]
[407772903,1772788159246,-500.0,9.473e-05,2]
[407772904,1772788159268,-500.0,9.473e-05,2]
[407772905,1772788159289,-500.0,9.473e-05,2]
[407772906,1772788159312,-501.86035421,9.473e-05,2]
[407772907,1772788159332,-500.0,9.473e-05,2]
[407772908,1772788159355,-164.71106665,9.473e-05,2]
[407772909,1772788159376,-500.0,9.473e-05,2]
[407772910,1772788159396,-500.0,9.473e-05,2]
[407772911,1772788159417,-500.0,9.473e-05,2]
[407772912,1772788159436,-500.0,9.473e-05,2]
[407772913,1772788159456,-500.0,9.473e-05,2]
[407772914,1772788159476,-500.0,9.473e-05,2]
[407772915,1772788159497,-501.72819961,9.473e-05,2]
[407772916,1772788159518,-665.0,9.479e-05,2]
[407772917,1772788159543,-36375.87248911,9.489e-05,2]
[407772918,1772788165106,-32750.47221574,9.489e-05,2]
[407772919,1772788165133,-500.0,9.499e-05,2]
[407772920,1772788165158,-657.95647624,9.499e-05,2]
[407772921,1772788165183,-500.0,9.499e-05,2]
[407772922,1772788165206,-590.14905898,9.499e-05,2]
[407772923,1772788165227,-537.9452574,9.499e-05,2]
[407772924,1772788165249,-500.0,9.499e-05,2]
[407772925,1772788165271,-500.0,9.499e-05,2]
[407772926,1772788165294,-500.0,9.499e-05,2]
[407772927,1772788165317,-500.0,9.499e-05,2]
[407772928,1772788165342,-1320.71167212,9.499e-05,2]
[407772929,1772788165365,-1320.71167212,9.499e-05,2]
[407772930,1772788165387,-1320.71167212,9.499e-05,2]
[407772931,1772788165410,-1320.71167212,9.499e-05,2]
[407772932,1772788165434,-1320.71167212,9.499e-05,2]
[407772933,1772788165461,-1320.71167212,9.499e-05,2]
[407772934,1772788165484,-1320.71167212,9.499e-05,2]
[407772935,1772788165507,-1320.71167212,9.499e-05,2]
[407772936,1772788165530,-1320.71167212,9.499e-05,2]
[407772937,1772788165554,-1320.71167212,9.499e-05,2]
[407772938,1772788165578,-1320.71167212,9.499e-05,2]
[407772939,1772788165602,-1320.71167212,9.499e-05,2]
[407772940,1772788165627,-1320.71167212,9.499e-05,2]
[407772941,1772788165650,-1320.71167212,9.499e-05,2]
[407772942,1772788165672,-1320.71167212,9.499e-05,2]
[407772943,1772788165695,-1320.71167212,9.499e-05,2]
[407772944,1772788165718,-1320.71167212,9.499e-05,2]
[407772945,1772788165740,-1243.0319856,9.499e-05,2]
[407772946,1772788166896,-77.67968652,9.499e-05,2]
[407772947,1772788166920,-1320.71167212,9.499e-05,2]
[407772948,1772788166943,-1320.71167212,9.499e-05,2]
[407772949,1772788166965,-1320.71167212,9.499e-05,2]
[407772950,1772788166988,-1320.71167212,9.499e-05,2]
[407772951,1772788167011,-186.333601,9.499e-05,2]
[407772963,1772788231403,-500.0,9.473e-05,2]
[407772965,1772788231412,-226.50450731,9.473e-05,2]
[407772966,1772788231423,-500.0,9.473e-05,2]
[407772967,1772788231432,-511.62329168,9.491e-05,2]
[407772968,1772788231442,-228.0,9.491e-05,2]
[407772969,1772788231453,-302.61140846,9.494e-05,2]
[407772970,1772788231462,-2875.36870604,9.494e-05,2]
[407772971,1772788231471,-300.0,9.498e-05,2]
[407772972,1772788231482,-1200.0,9.498e-05,2]
[407772973,1772788231498,-500.0,9.499e-05,2]
[407772974,1772788231519,-159.0,9.499e-05,3]
[407772975,1772788231536,-154.0,9.499e-05,3]
[407772976,1772788231550,-153.0,9.499e-05,3]
[407772977,1772788231560,-1134.37807112,9.499e-05,2]
[407772978,1772788231570,-1320.71167212,9.499e-05,2]
[407772979,1772788231579,-1320.71167212,9.499e-05,2]
[407772980,1772788231589,-1320.71167212,9.499e-05,2]
[407772981,1772788231601,-1320.71167212,9.499e-05,2]
[407772982,1772788231611,-1320.71167212,9.499e-05,2]
[407772983,1772788231620,-1320.71167212,9.499e-05,2]
[407772985,1772788231630,-1320.71167212,9.499e-05,2]
[407772987,1772788231640,-1320.71167212,9.499e-05,2]
[407772989,1772788231649,-1320.71167212,9.499e-05,2]
[407772991,1772788231659,-1320.71167212,9.499e-05,2]
[407772993,1772788231668,-1320.71167212,9.499e-05,2]
[407772995,1772788231679,-1320.71167212,9.499e-05,2]
[407772997,1772788231688,-1320.71167212,9.499e-05,2]
[407772999,1772788231699,-1320.71167212,9.499e-05,2]
[407773001,1772788231716,-1320.71167212,9.499e-05,2]
[407773003,1772788231725,-1320.71167212,9.499e-05,2]
[407773005,1772788231736,-1320.71167212,9.499e-05,2]
[407773007,1772788231745,-1320.71167212,9.499e-05,2]
[407773009,1772788231754,-1320.71167212,9.499e-05,2]
[407773010,1772788231764,-1320.71167212,9.499e-05,2]
[407773011,1772788231773,-1320.71167212,9.499e-05,2]
[407773012,1772788231782,-1320.71167212,9.499e-05,2]
[407773013,1772788231792,-1320.71167212,9.499e-05,2]
[407773014,1772788231801,-1320.71167212,9.499e-05,2]
[407773015,1772788231810,-1320.71167212,9.499e-05,2]
[407773016,1772788231819,-1320.71167212,9.499e-05,2]
[407773017,1772788231829,-1320.71167212,9.499e-05,2]
[407773018,1772788231839,-1320.71167212,9.499e-05,2]
[407773019,1772788231854,-1320.71167212,9.499e-05,2]
[407773020,1772788231864,-1320.71167212,9.499e-05,2]
[407773021,1772788231878,-1320.71167212,9.499e-05,2]
[407773022,1772788231888,-1320.71167212,9.499e-05,2]
[407773023,1772788231897,-1320.71167212,9.499e-05,2]
[407773024,1772788231907,-203.69742724,9.499e-05,2]
[407773025,1772788231917,-500.0,9.499e-05,2]
[407773026,1772788231926,-299.97174534,9.499e-05,2]
[407773027,1772788231935,-1320.71167212,9.499e-05,2]
[407773028,1772788231945,-1320.71167212,9.499e-05,2]
[407773029,1772788231955,-1368.73755111,9.499e-05,2]
[407773030,1772788231964,-1368.73755111,9.499e-05,2]
[407773031,1772788231973,-1368.73755111,9.499e-05,2]
[407773032,1772788231983,-1368.73755111,9.499e-05,2]
[407773033,1772788231992,-1368.73755111,9.499e-05,2]
[407773034,1772788232003,-1368.73755111,9.499e-05,2]
[407773035,1772788232012,-1368.73755111,9.499e-05,2]
[407773036,1772788232022,-1368.73755111,9.499e-05,2]
[407773037,1772788232031,-1368.73755111,9.499e-05,2]
[407773038,1772788232040,-1368.73755111,9.499e-05,2]
[407773039,1772788232049,-1368.73755111,9.499e-05,2]
[407773040,1772788232059,-1368.73755111,9.499e-05,2]
[407773041,1772788232068,-1368.73755111,9.499e-05,2]
[407773042,1772788232077,-1368.73755111,9.499e-05,2]
[407773043,1772788232086,-1368.73755111,9.499e-05,2]
[407773044,1772788232097,-1368.73755111,9.499e-05,2]
[407773045,1772788232106,-1368.73755111,9.499e-05,2]
[407773046,1772788232116,-1368.73755111,9.499e-05,2]
[407773047,1772788232128,-1368.73755111,9.499e-05,2]
[407773048,1772788232150,-1368.73755111,9.499e-05,2]
[407773049,1772788232170,-1368.73755111,9.499e-05,2]
[407773050,1772788232180,-1368.73755111,9.499e-05,2]
[407773051,1772788232190,-1368.73755111,9.499e-05,2]
[407773052,1772788232199,-1368.73755111,9.499e-05,2]
[407773053,1772788232209,-1368.73755111,9.499e-05,2]
[407773054,1772788232218,-1165.42799673,9.499e-05,2]
[407773055,1772788232228,-1165.42799673,9.499e-05,2]
[407773056,1772788232238,-1165.42799673,9.499e-05,2]
[407773057,1772788232247,-1165.42799673,9.499e-05,2]
[407773058,1772788232256,-1165.42799673,9.499e-05,2]
[407773059,1772788232266,-1165.42799673,9.499e-05,2]
[407773060,1772788232275,-1165.42799673,9.499e-05,2]
[407773061,1772788232285,-1165.42799673,9.499e-05,2]
[407773062,1772788232295,-1165.42799671,9.499e-05,2]
[407773063,1772788232305,-898900.62260102,9.5e-05,3]
[407773064,1772788232978,-201983.46955057,9.5e-05,3]
[407773065,1772788232990,-1631.14702,9.5e-05,3]
[407773066,1772788233012,-922.09485196,9.5e-05,3]
[407773076,1772788237507,-1048.80405627,9.499e-05,3]
[407773077,1772788237518,-479703.69940831,9.5e-05,3]
[407773078,1772788237530,-796318.22055806,9.5e-05,3]
[407773079,1772788237540,-2773.74987181,9.613e-05,2]
[407773080,1772788237550,-250.0,9.613e-05,2]
[407773081,1772788237559,-5000.0,9.613e-05,2]
[407773082,1772788237568,-193.0,9.613e-05,2]
[407773083,1772788237578,-900.0,9.62e-05,2]
[407773084,1772788237588,-217.0,9.639e-05,2]
[407773085,1772788237598,-433.0,9.679e-05,2]
[407773086,1772788237608,-587.0,9.679e-05,2]
[407773087,1772788237617,-500.0,9.773e-05,2]
[407773088,1772788237626,-1435.0,9.783e-05,2]
[407773089,1772788237635,-175.654304,9.785e-05,2]
[407773090,1772788237644,-933.13230586,9.802e-05,2]
[407773091,1772788237654,-1184.0,9.831e-05,2]
[407773092,1772788237663,-1437.0,9.85e-05,2]
[407773093,1772788237672,-438.0,9.87e-05,2]
[407773094,1772788237681,-560.0,9.889e-05,2]
[407773095,1772788237690,-221.22,9.957e-05,2]
[407773096,1772788237699,-1001.54063162,0.0001,2]
[407773097,1772788237709,-347.67123154,0.0001,2]
[407773098,1772788237718,-236.72050497,0.0001,2]
[407773100,1772788237728,-236.72050497,0.0001,2]
[407773102,1772788237737,-236.72050497,0.0001,2]
[407773104,1772788237747,-398.96258078,0.0001,2]
[407773106,1772788237756,-422.23055131,0.0001,2]
[407773108,1772788237765,-495.32588448,0.00010021,2]
[407773110,1772788237774,-786.15465741,0.00010021,2]
[407773112,1772788237783,-1003.94970501,0.00010021,2]
[407773114,1772788237792,-152.00387375,0.00010021,2]
[407773116,1772788237801,-342.14853906,0.00010021,2]
[407773118,1772788237811,-500.0,0.00010021,2]
[407773120,1772788237820,-532.85842952,0.00010021,2]
[407773122,1772788237829,-1000.0,0.00010021,2]
[407773124,1772788237839,-500.0,0.00010047,2]
[407773127,1772788237849,-275.0,0.0001014,2]
[407773128,1772788237858,-419.0,0.0001016,2]
[407773130,1772788237867,-1069.0,0.00010231,2]
[407773133,1772788237877,-1357.0,0.00010252,2]
[407773134,1772788237886,-678.0,0.00010272,2]
[407773136,1772788237896,-500.0,0.00010321,2]
[407773139,1772788237905,-250.0,0.0001044,2]
[407773141,1772788237914,-5000.0,0.0001044,2]
[407773142,1772788237923,-300.0,0.00010448,2]
[407773144,1772788237933,-1680.0,0.00010448,2]
[407773146,1772788237942,-1500.0,0.00010568,2]
[407773148,1772788237951,-608.00046403,0.00010595,2]
[407773150,1772788237960,-736.0,0.00010647,2]
[407773152,1772788237969,-823.0,0.00010647,2]
[407773154,1772788237979,-1465.22462478,0.000109,2]
[407773156,1772788237988,-1465.22462471,0.000109,2]
[407773158,1772788237997,-221.22,0.00010953,2]
[407773161,1772788238007,-180.28400863,0.00010959,2]
[407773162,1772788238016,-200.0,0.00011049,2]
[407773164,1772788238025,-5134.32710026,0.00011099,2]
[407773166,1772788238036,-5134.32710024,0.00011099,2]
[407773168,1772788238045,-5134.32710024,0.00011099,2]
[407773170,1772788238056,-5473.15484311,0.00011099,2]
[407773172,1772788238066,-5473.15484302,0.00011099,2]
[407773174,1772788238075,-5473.15484302,0.00011099,2]
[407773176,1772788238084,-2000.0,0.00011116,2]
[407773178,1772788238095,-2351.0,0.00011493,2]
[407773180,1772788238104,-5473.15484302,0.00011531,2]
[407773182,1772788238113,-5134.32710024,0.00011532,2]
[407773184,1772788238122,-402.19853182,0.00011664,2]
[407773186,1772788238133,-1252.0,0.00011711,2]
[407773188,1772788238144,-298.0,0.00011711,2]
[407773190,1772788238153,-221.22,0.00011949,2]
[407773192,1772788238162,-500.0,0.00012,2]
[407773194,1772788238171,-917.59742261,0.00012,2]
[407773196,1772788238182,-226.32936989,0.00012,2]
[407773198,1772788238192,-500.0,0.00012,2]
[407773200,1772788238203,-500.0,0.00012,2]
[407773202,1772788238214,-500.0,0.00012,2]
[407773204,1772788238224,-500.0,0.00012,2]
[407773206,1772788238233,-500.0,0.00012,2]
[407773208,1772788238242,-500.0,0.00012,2]
[407773210,1772788238251,-500.0,0.00012,2]
[407773213,1772788238262,-500.0,0.00012,2]
[407773215,1772788238272,-500.0,0.00012,2]
[407773216,1772788238281,-500.0,0.00012,2]
[407773218,1772788238291,-500.0,0.00012,2]
[407773221,1772788238301,-500.0,0.00012,2]
[407773223,1772788238310,-500.0,0.00012,2]
[407773225,1772788238320,-500.0,0.00012,2]
[407773227,1772788238329,-500.0,0.00012,2]
[407773229,1772788238338,-500.0,0.00012,2]
[407773231,1772788238347,-500.0,0.00012,2]
[407773233,1772788238356,-500.0,0.00012,2]
[407773234,1772788238365,-500.0,0.00012,2]
[407773236,1772788238375,-500.0,0.00012,2]
[407773238,1772788238384,-976.61163683,0.00012,2]
[407773241,1772788238393,-500.0,0.00012,2]
[407773243,1772788238402,-500.0,0.00012,2]
[407773245,1772788238412,-500.0,0.00012,2]
[407773246,1772788238421,-500.0,0.00012,2]
[407773248,1772788238430,-500.0,0.00012,2]
[407773250,1772788238440,-500.0,0.00012,2]
[407773252,1772788238450,-500.0,0.00012,2]
[407773255,1772788238459,-500.0,0.00012,2]
[407773257,1772788238468,-500.0,0.00012,2]
[407773258,1772788238478,-500.0,0.00012,2]
[407773260,1772788238488,-500.0,0.00012,2]
[407773263,1772788238497,-606.04,0.00012,2]
[407773264,1772788238507,-500.0,0.00012,2]
[407773267,1772788238516,-500.0,0.00012,2]
[407773269,1772788238526,-500.0,0.00012,2]
[407773270,1772788238535,-514.43382249,0.00012,2]
[407773272,1772788238544,-500.0,0.00012,2]
[407773274,1772788238554,-500.0,0.00012,2]
[407773276,1772788238563,-300.0,0.00012,2]
[407773279,1772788238572,-5473.15484302,0.00012242,2]
[407773281,1772788238582,-5134.32710024,0.00012242,2]
[407773283,1772788238591,-262.84,0.00012316,2]
[407773284,1772788238600,-1465.22462471,0.000124,2]
[407773287,1772788238609,-250.0,0.00012551,2]
[407773289,1772788238619,-3292.0,0.00012642,2]
[407773291,1772788238628,-2129.0,0.00012886,2]
[407773293,1772788238639,-159.0,0.0001292,3]
[407773295,1772788238648,-221.22,0.00012944,2]
[407773297,1772788238656,-5473.15484302,0.00012952,2]
[407773299,1772788238666,-5134.32710024,0.00012953,2]
[407773301,1772788238675,-158.41,0.00013,2]
[407773303,1772788238685,-158.41,0.00013,2]
[407773305,1772788238694,-500.0,0.00013,2]
[407773307,1772788238703,-500.0,0.00013,2]
[407773308,1772788238712,-500.0,0.00013,2]
[407773310,1772788238722,-500.0,0.00013,2]
[407773312,1772788238731,-318.03151824,0.00013,2]
[407773315,1772788238741,-500.0,0.00013,2]
[407773317,1772788238751,-427.60857695,0.00013,2]
[407773319,1772788238760,-500.0,0.00013,2]
[407773321,1772788238769,-200.0,0.00013357,2]
[407773323,1772788238777,-1000.0,0.00013548,2]
[407773325,1772788238787,-168.3299599,0.00013548,2]
[407773327,1772788238796,-1000.0,0.00013548,2]
[407773329,1772788238805,-1000.0,0.00013548,2]
[407773331,1772788238814,-5473.15484302,0.00013663,2]
[407773332,1772788238823,-5134.32710024,0.00013663,2]
[407773334,1772788238832,-499.99,0.00013699,2]
[407773337,1772788238843,-299.99,0.00013699,2]
[407773338,1772788238852,-14676.68,0.00013699,2]
[407773341,1772788238862,-999.99,0.00013699,2]
[407773342,1772788238871,-7582.43,0.00013699,2]
[407773344,1772788238880,-9999.99,0.00013699,2]
[407773346,1772788238889,-312.02,0.00013699,2]
[407773348,1772788238899,-150.99,0.00013699,2]
[407773351,1772788238908,-9999.99,0.00013699,2]
[407773352,1772788238918,-608.86,0.00013699,2]
[407773354,1772788238927,-9999.99,0.00013699,2]
[407773356,1772788238936,-9999.99,0.00013699,2]
[407773358,1772788238945,-1565.73,0.00013699,2]
[407773360,1772788238954,-4999.99,0.00013699,2]
[407773362,1772788238964,-1187.09,0.00013699,2]
[407773364,1772788238974,-150.99,0.00013699,2]
[407773366,1772788238983,-7320.46,0.00013699,2]
[407773368,1772788238992,-500.0,0.00013699,2]
[407773370,1772788239002,-500.0,0.00013699,2]
[407773372,1772788239011,-500.0,0.00013699,2]
[407773374,1772788239021,-500.0,0.00013699,2]
[407773376,1772788239030,-500.0,0.00013699,2]
[407773378,1772788239040,-500.0,0.00013699,2]
[407773380,1772788239049,-500.0,0.00013699,2]
[407773383,1772788239059,-23868.35,0.00013699,2]
[407773384,1772788239068,-278.86651136,0.00013699,2]
[407773386,1772788239077,-316.24495395,0.00013806,2]
[407773389,1772788239087,-4609.0,0.00013906,2]
[407773391,1772788239097,-221.22,0.0001394,2]
[407773393,1772788239106,-506.0,0.00014,2]
[407773395,1772788239117,-1500.0,0.00014096,2]
[407773397,1772788239126,-1500.0,0.00014096,2]
[407773399,1772788239139,-679.0,0.00014174,2]
[407773400,1772788239148,-1000.0,0.00014247,2]
[407773401,1772788239157,-1030.88059829,0.00014247,2]
[407773403,1772788239167,-1000.0,0.00014247,2]
[407773405,1772788239176,-735.21838039,0.00014247,2]
[407773406,1772788239186,-1056.1229892,0.00014247,2]
[407773407,1772788239195,-1000.0,0.00014247,2]
[407773408,1772788239207,-949.5306254,0.00014247,2]
[407773409,1772788239216,-5473.15484302,0.00014374,2]
[407773410,1772788239226,-5134.32710024,0.00014374,2]
[407773411,1772788239236,-1000.0,0.00014502,7]
[407773412,1772788239245,-151.0,0.00014634,2]
[407773414,1772788239254,-787.80347915,0.00014644,2]
[407773415,1772788239263,-2000.0,0.00014644,2]
[407773416,1772788239272,-398.96258077,0.0001465,2]
[407773417,1772788239282,-1500.0,0.00014795,2]
[407773418,1772788239291,-1500.0,0.00014795,2]
[407773419,1772788239300,-1500.0,0.00014795,2]
[407773420,1772788239309,-221.22,0.00014936,2]
[407773421,1772788239319,-5473.15484302,0.00015084,2]
[407773422,1772788239328,-5134.32710024,0.00015084,2]
[407773423,1772788239338,-500.0,0.00015152,2]
[407773424,1772788239347,-185.395725,0.00015178,7]
[407773425,1772788239356,-2500.0,0.00015192,2]
[407773426,1772788239366,-6453.0,0.00015297,2]
[407773427,1772788239375,-360.79,0.00015312,2]
[407773428,1772788239386,-557.2086331,0.00015342,2]
[407773429,1772788239396,-2000.0,0.00015342,2]
[407773430,1772788239406,-2000.0,0.00015342,2]
[407773431,1772788239415,-500.0,0.00015418,2]
[407773432,1772788239424,-1148.6,0.00015471,2]
[407773433,1772788239434,-290.94,0.00015471,2]
[407773434,1772788239445,-600.0,0.000155,5]
[407773435,1772788239454,-500.0,0.00015611,2]
[407773436,1772788239463,-500.0,0.00015611,2]
[407773437,1772788239473,-150.0,0.00015611,2]
[407773438,1772788239481,-500.0,0.00015611,2]
[407773439,1772788239491,-500.0,0.0001562,2]
[407773440,1772788239500,-691.0,0.0001562,2]
[407773441,1772788239509,-500.0,0.0001562,2]
[407773442,1772788239519,-500.0,0.00015621,2]
[407773443,1772788239531,-500.0,0.00015621,2]
[407773444,1772788239540,-500.0,0.00015621,2]
[407773445,1772788239550,-150.0,0.00015621,2]
[407773446,1772788239559,-500.0,0.00015621,2]
[407773448,1772788239569,-500.0,0.00015621,2]
[407773449,1772788239579,-1077.0,0.00015621,2]
[407773450,1772788239589,-489.0,0.00015621,2]
[407773451,1772788239600,-500.0,0.00015621,2]
[407773452,1772788239609,-150.0,0.00015621,2]
[407773453,1772788239618,-500.0,0.00015621,2]
[407773454,1772788239628,-470.0,0.00015621,2]
[407773455,1772788239636,-500.0,0.00015621,2]
[407773456,1772788239650,-1414.0,0.00015621,2]
[407773457,1772788239660,-842.0,0.00015621,2]
[407773458,1772788239669,-150.0,0.00015621,2]
[407773459,1772788239678,-150.0,0.00015621,2]
[407773460,1772788239687,-509.42125143,0.00015684,2]
[407773461,1772788239696,-600.0,0.000157,4]
[407773462,1772788239706,-3000.0,0.0001574,2]
[407773463,1772788239714,-154.0,0.00015771,3]
[407773464,1772788239724,-153.0,0.00015771,3]
[407773465,1772788239733,-150.10507288,0.00015785,2]
[407773466,1772788239742,-5134.32710024,0.00015795,2]
[407773467,1772788239752,-5473.15484302,0.00015795,2]
[407773468,1772788239762,-500.0,0.00015867,2]
[407773469,1772788239771,-150.0,0.00015867,2]
[407773470,1772788239781,-500.0,0.00015873,2]
[407773471,1772788239790,-500.0,0.00015873,2]
[407773472,1772788239799,-500.0,0.00015873,2]
[407773473,1772788239808,-500.0,0.00015873,2]
[407773474,1772788239817,-500.0,0.00015873,2]
[407773475,1772788239827,-500.0,0.00015873,2]
[407773476,1772788239837,-500.0,0.00015873,2]
[407773477,1772788239847,-500.0,0.00015885,2]
[407773478,1772788239857,-500.0,0.00015885,2]
[407773479,1772788239866,-153.06318748,0.00015885,2]
[407773480,1772788239875,-526.12447744,0.00015885,2]
[407773481,1772788239884,-151.0,0.00015885,2]
[407773482,1772788239893,-500.0,0.00015885,2]
[407773483,1772788239903,-151.0,0.00015885,2]
[407773484,1772788239912,-500.0,0.00015885,2]
[407773485,1772788239921,-151.0,0.00015885,2]
[407773486,1772788239931,-500.0,0.00015885,2]
[407773487,1772788239940,-151.0,0.00015885,2]
[407773488,1772788239950,-500.0,0.00015885,2]
[407773489,1772788239959,-151.0,0.00015885,2]
[407773490,1772788239968,-500.0,0.00015885,2]
[407773491,1772788239978,-151.0,0.00015885,2]
[407773492,1772788239986,-500.0,0.00015885,2]
[407773493,1772788239996,-151.0,0.00015885,2]
[407773494,1772788240006,-500.0,0.00015885,2]
[407773495,1772788240015,-151.0,0.00015885,2]
[407773496,1772788240027,-500.0,0.00015885,2]
[407773497,1772788240036,-151.0,0.00015885,2]
[407773498,1772788240045,-500.0,0.00015885,2]
[407773499,1772788240056,-151.0,0.00015885,2]
[407773500,1772788240066,-500.0,0.00015885,2]
[407773501,1772788240076,-151.0,0.00015885,2]
[407773502,1772788240086,-500.0,0.00015885,2]
[407773503,1772788240098,-500.0,0.00015885,2]
[407773504,1772788240107,-500.0,0.00015885,2]
[407773505,1772788240116,-500.0,0.00015885,2]